fUST/lending_fUST_20240902
["ID","MTS","AMOUNT","RATE_DAILY","PERIOD"]
[336879939,1725228644063,-500.0,0.00024657,2]
[336879940,1725228644072,-500.0,0.00024657,2]
[336879942,1725228644084,-500.24314518,0.00024657,2]
[336879944,1725228644094,-403.36437749,0.00024657,2]
[336879946,1725228644103,-500.0,0.00024657,4]
[336879948,1725228644112,-306.90346534,0.00024657,2]
[336879949,1725228644121,-500.0,0.00024657,2]
[336879950,1725228644131,-500.0,0.00024657,2]
[336879951,1725228644140,-1878.49,0.00024657,2]
[336879953,1725228644149,-500.0,0.00024657,2]
[336879954,1725228644158,-468.42360655,0.00024657,2]
[336879955,1725228644169,-500.0,0.00024657,2]
[336879956,1725228644179,-500.0,0.00024657,2]
[336879957,1725228644189,-500.0,0.00024657,2]
[336879958,1725228644202,-763.22,0.00024657,2]
[336879959,1725228644211,-566.62755411,0.00024657,2]
[336879960,1725228644221,-500.0,0.00024657,2]
[336879961,1725228644232,-500.0,0.00024657,2]
[336879962,1725228644242,-1221.62,0.00024657,2]
[336879963,1725228644251,-2651.51,0.00024657,2]
[336879964,1725228644261,-500.0,0.00024657,2]
[336879965,1725228644271,-500.0,0.00024657,2]
[336879966,1725228644280,-500.0,0.00024657,2]
[336879967,1725228644290,-592.12,0.00024657,2]
[336879968,1725228644301,-500.0,0.00024657,2]
[336879969,1725228644312,-500.0,0.00024657,2]
[336879970,1725228644322,-670.18,0.00024657,2]
[336879971,1725228644332,-500.0,0.00024657,2]
[336879972,1725228644342,-500.0,0.00024657,2]
[336879973,1725228644352,-310.73867141,0.00024657,2]
[336879974,1725228644362,-8135.23,0.00024657,2]
[336879975,1725228644371,-1097.2,0.00024657,2]
[336879976,1725228644380,-500.0,0.00024657,2]
[336879977,1725228644390,-503.24694525,0.00024657,2]
[336879978,1725228644399,-500.0,0.00024657,2]
[336879979,1725228644409,-748.62,0.00024657,2]
[336879980,1725228644418,-500.0,0.00024657,2]
[336879981,1725228644428,-1469.22,0.00024657,2]
[336879982,1725228644438,-760.32,0.00024657,2]
[336879983,1725228644448,-500.0,0.00024657,2]
[336879984,1725228644458,-500.0,0.00024657,2]
[336879985,1725228644468,-500.0,0.00024657,2]
[336879986,1725228644477,-1292.4,0.00024657,2]
[336879987,1725228644487,-500.0,0.00024657,2]
[336879988,1725228644497,-500.0,0.00024657,2]
[336879989,1725228644506,-500.0,0.00024657,2]
[336879990,1725228644516,-1797.7,0.00024657,2]
[336879991,1725228644527,-1625.78,0.00024657,2]
[336879992,1725228644537,-347.67815756,0.00024657,2]
[336879993,1725228644548,-1064.32,0.00024657,2]
[336879994,1725228644558,-154.83952908,0.00024657,2]
[336879995,1725228644567,-6300.35,0.00024657,2]
[336879996,1725228644577,-500.0,0.00024657,2]
[336879997,1725228644586,-500.0,0.00024657,2]
[336879998,1725228644596,-500.0,0.00024657,2]
[336879999,1725228644606,-3428.19,0.00024657,2]
[336880000,1725228644616,-500.0,0.00024657,2]
[336880001,1725228644625,-500.0,0.00024657,2]
[336880002,1725228644635,-500.0,0.00024657,2]
[336880003,1725228644644,-500.0,0.00024657,2]
[336880004,1725228644654,-500.0,0.00024657,2]
[336880005,1725228644664,-500.0,0.00024657,2]
[336880006,1725228644674,-2304.19,0.00024657,2]
[336880007,1725228644683,-2018.08,0.00024657,2]
[336880008,1725228644692,-2549.09,0.00024657,2]
[336880009,1725228644702,-500.0,0.00024657,2]
[336880010,1725228644712,-500.0,0.00024657,2]
[336880011,1725228644721,-1477.22,0.00024657,2]
[336880012,1725228644733,-2017.0,0.00024657,2]
[336880013,1725228644742,-1110.58,0.00024657,2]
[336880014,1725228644752,-1525.03,0.00024657,2]
[336880015,1725228644762,-1549.12,0.00024657,2]
[336880016,1725228644772,-500.0,0.00024657,2]
[336880017,1725228644781,-508.27449192,0.00024657,2]
[336880018,1725228644790,-1058.99,0.00024657,2]
[336880019,1725228644800,-527.69,0.00024657,2]
[336880020,1725228644809,-500.0,0.00024657,2]
[336880021,1725228644818,-1613.35,0.00024657,2]
[336880022,1725228644827,-500.0,0.00024657,2]
[336880023,1725228644837,-500.0,0.00024657,2]
[336880024,1725228644846,-551.55,0.00024657,2]
[336880025,1725228644855,-500.0,0.00024657,2]
[336880026,1725228644865,-500.0,0.00024657,2]
[336880027,1725228644979,-500.0,0.00024657,2]
[336880028,1725228645005,-200.0,0.00024658,2]
[336880029,1725228645014,-200.0,0.00024658,15]
[336880030,1725228645024,-380.0,0.00024658,2]
[336880031,1725228645033,-500.0,0.00024673,2]
[336880032,1725228645042,-375.39644856,0.00024673,2]
[336880033,1725228645052,-753.43620721,0.00024694,2]
[336880034,1725228645061,-150.112233,0.000247,5]
[336880035,1725228645071,-753.43620721,0.00024763,2]
[336880036,1725228645081,-150.112233,0.000248,4]
[336880037,1725228645091,-1368.23083191,0.00024831,2]
[336880038,1725228645101,-753.43620721,0.00024831,2]
[336880039,1725228645111,-150.112233,0.000249,4]
[336880040,1725228645121,-5000.0,0.00024915,2]
[336880041,1725228645130,-31352.3204064,0.00024921,3]
[336880042,1725228645140,-2195.49,0.00024929,2]
[336880043,1725228645149,-500.0,0.0002493,2]
[336880044,1725228645159,-500.0,0.0002493,2]
[336880045,1725228645168,-263.14957392,0.0002493,2]
[336880046,1725228645178,-2195.49,0.0002493,2]
[336880047,1725228645187,-2195.49,0.0002493,2]
[336880048,1725228645197,-2195.49,0.0002493,2]
[336880049,1725228645207,-2195.49,0.0002493,2]
[336880050,1725228645216,-2195.49,0.0002493,2]
[336880051,1725228645226,-2195.49,0.0002493,2]
[336880052,1725228645237,-500.0,0.0002493,2]
[336880053,1725228645248,-500.0,0.0002493,2]
[336880054,1725228645258,-500.0,0.0002493,2]
[336880055,1725228645267,-500.0,0.0002493,2]
[336880056,1725228645277,-500.0,0.0002493,2]
[336880057,1725228645287,-500.0,0.0002493,2]
[336880058,1725228645296,-500.15,0.00024931,2]
[336880059,1725228645306,-500.0,0.00024931,2]
[336880060,1725228645318,-500.0,0.00024931,2]
[336880061,1725228645329,-500.0,0.00024931,2]
[336880062,1725228645340,-500.0,0.00024931,2]
[336880063,1725228645351,-500.0,0.00024931,2]
[336880064,1725228645361,-500.0,0.00024931,2]
[336880065,1725228645371,-500.0,0.00024931,2]
[336880066,1725228645381,-507.71146256,0.00024931,2]
[336880067,1725228645391,-500.0,0.00024931,2]
[336880068,1725228645400,-500.0,0.00024931,2]
[336880069,1725228645410,-500.0,0.00024931,2]
[336880070,1725228645421,-159.22190684,0.00024931,2]
[336880071,1725228645431,-500.0,0.00024931,2]
[336880072,1725228645443,-500.0,0.00024931,2]
[336880073,1725228645453,-500.0,0.00024931,2]
[336880074,1725228645464,-500.0,0.00024931,2]
[336880075,1725228645474,-500.0,0.00024931,2]
[336880076,1725228645485,-500.0,0.00024931,2]
[336880077,1725228645496,-500.0,0.00024931,2]
[336880078,1725228645506,-500.0,0.00024931,2]
[336880079,1725228645517,-720.13,0.00024931,2]
[336880080,1725228645526,-500.0,0.00024931,2]
[336880081,1725228645536,-500.0,0.00024931,2]
[336880082,1725228645547,-500.0,0.00024931,2]
[336880083,1725228645557,-500.0,0.00024931,2]
[336880084,1725228645567,-500.0,0.00024931,2]
[336880085,1725228645578,-306.81856574,0.00024931,2]
[336880086,1725228645587,-500.0,0.00024931,2]
[336880087,1725228645598,-500.0,0.00024931,2]
[336880088,1725228645607,-500.0,0.00024931,2]
[336880089,1725228645617,-500.0,0.00024931,2]
[336880090,1725228645627,-500.0,0.00024931,2]
[336880091,1725228645636,-500.0,0.00024931,2]
[336880092,1725228645646,-500.0,0.00024931,2]
[336880093,1725228645655,-500.0,0.00024931,2]
[336880094,1725228645665,-500.0,0.00024931,2]
[336880095,1725228645675,-500.0,0.00024931,2]
[336880096,1725228645685,-500.0,0.00024931,2]
[336880097,1725228645694,-500.0,0.00024931,2]
[336880098,1725228645704,-449.61626795,0.00024931,2]
[336880099,1725228645714,-500.0,0.00024931,2]
[336880100,1725228645724,-502.63088586,0.00024931,2]
[336880101,1725228645733,-580.81,0.00024931,2]
[336880102,1725228645742,-500.0,0.00024931,2]
[336880103,1725228645752,-500.0,0.00024931,2]
[336880105,1725228645761,-500.0,0.00024931,2]
[336880107,1725228645770,-500.0,0.00024931,2]
[336880108,1725228645780,-503.48,0.00024931,2]
[336880109,1725228645789,-500.0,0.00024931,2]
[336880111,1725228645799,-500.0,0.00024931,2]
[336880113,1725228645808,-570.14976887,0.00024931,2]
[336880115,1725228645818,-575.82,0.00024931,2]
[336880117,1725228645828,-500.0,0.00024931,2]
[336880118,1725228645837,-500.0,0.00024931,2]
[336880119,1725228645847,-500.0,0.00024931,2]
[336880121,1725228645856,-500.0,0.00024931,2]
[336880123,1725228645865,-500.0,0.00024931,2]
[336880124,1725228645874,-500.0,0.00024931,2]
[336880126,1725228645883,-500.0,0.00024931,2]
[336880128,1725228645892,-500.0,0.00024931,2]
[336880129,1725228645902,-500.0,0.00024931,2]
[336880130,1725228645913,-715.3,0.00024931,2]
[336880131,1725228645922,-500.0,0.00024931,2]
[336880132,1725228645932,-647.75,0.00024931,2]
[336880134,1725228645941,-500.0,0.00024931,2]
[336880136,1725228645950,-500.0,0.00024931,2]
[336880138,1725228645959,-502.05045916,0.00024931,2]
[336880140,1725228645968,-500.0,0.00024931,2]
[336880141,1725228645978,-500.0,0.00024931,2]
[336880143,1725228645988,-884.79,0.00024931,2]
[336880144,1725228645997,-500.0,0.00024931,2]
[336880145,1725228646012,-591.41,0.00024931,2]
[336880146,1725228646022,-484.00240528,0.00024931,2]
[336880147,1725228646031,-500.0,0.00024931,2]
[336880148,1725228646040,-500.0,0.00024931,2]
[336880149,1725228646052,-500.0,0.00024931,2]
[336880150,1725228646061,-500.0,0.00024931,2]
[336880151,1725228646071,-500.0,0.00024931,2]
[336880152,1725228646081,-500.0,0.00024931,2]
[336880153,1725228646090,-500.0,0.00024931,2]
[336880154,1725228646100,-500.0,0.00024931,2]
[336880155,1725228646110,-500.0,0.00024931,2]
[336880156,1725228646119,-551.46,0.00024931,2]
[336880157,1725228646128,-794.6,0.00024931,2]
[336880158,1725228646140,-500.0,0.00024931,2]
[336880159,1725228646151,-500.0,0.00024931,2]
[336880160,1725228646162,-500.0,0.00024931,2]
[336880161,1725228646171,-500.0,0.00024931,2]
[336880162,1725228646182,-500.0,0.00024931,2]
[336880163,1725228646192,-500.0,0.00024931,2]
[336880164,1725228646202,-500.0,0.00024931,2]
[336880165,1725228646214,-500.0,0.00024931,2]
[336880166,1725228646224,-500.0,0.00024931,2]
[336880167,1725228646234,-500.0,0.00024931,2]
[336880168,1725228646244,-500.0,0.00024931,2]
[336880169,1725228646255,-500.0,0.00024931,2]
[336880170,1725228646265,-500.0,0.00024931,2]
[336880171,1725228646274,-447.12640099,0.00024931,2]
[336880172,1725228646283,-500.0,0.00024931,2]
[336880173,1725228646293,-536.96617675,0.00024931,2]
[336880174,1725228646302,-500.0,0.00024931,2]
[336880175,1725228646312,-500.0,0.00024931,2]
[336880176,1725228646321,-506.19012524,0.00024931,2]
[336880177,1725228646332,-500.0,0.00024931,2]
[336880178,1725228646342,-500.0,0.00024931,2]
[336880179,1725228646352,-500.0,0.00024931,2]
[336880180,1725228646362,-500.0,0.00024931,2]
[336880181,1725228646372,-500.0,0.00024931,2]
[336880182,1725228646382,-491.00930412,0.00024931,2]
[336880183,1725228646393,-500.0,0.00024931,2]
[336880184,1725228646403,-4033.99,0.00024931,2]
[336880185,1725228646413,-500.0,0.00024931,2]
[336880186,1725228646423,-500.0,0.00024931,2]
[336880187,1725228646433,-500.0,0.00024931,2]
[336880188,1725228646442,-500.0,0.00024931,2]
[336880189,1725228646451,-500.0,0.00024931,2]
[336880190,1725228646461,-500.0,0.00024931,2]
[336880191,1725228646470,-500.0,0.00024931,2]
[336880192,1725228646480,-500.0,0.00024931,2]
[336880193,1725228646496,-500.0,0.00024931,2]
[336880194,1725228646505,-500.0,0.00024931,2]
[336880195,1725228646514,-500.0,0.00024931,2]
[336880196,1725228646526,-500.0,0.00024931,2]
[336880197,1725228646535,-500.0,0.00024931,2]
[336880198,1725228646545,-500.0,0.00024931,2]
[336880199,1725228646555,-1438.01,0.00024931,2]
[336880200,1725228646565,-500.0,0.00024931,2]
[336880201,1725228646574,-500.0,0.00024931,2]
[336880202,1725228646584,-500.0,0.00024931,2]
[336880203,1725228646594,-500.0,0.00024931,2]
[336880204,1725228646604,-500.0,0.00024931,2]
[336880205,1725228646613,-251.9472781,0.00024931,2]
[336880206,1725228646623,-500.0,0.00024931,2]
[336880207,1725228646632,-593.34,0.00024931,2]
[336880208,1725228646642,-557.48951493,0.00024931,2]
[336880209,1725228646651,-500.0,0.00024931,2]
[336880210,1725228646661,-500.0,0.00024931,2]
[336880211,1725228646670,-686.42,0.00024931,2]
[336880212,1725228646679,-500.0,0.00024931,2]
[336880213,1725228646689,-500.0,0.00024931,2]
[336880214,1725228646698,-854.25,0.00024931,2]
[336880215,1725228646707,-500.0,0.00024931,2]
[336880216,1725228646715,-500.0,0.00024931,2]
[336880217,1725228646725,-500.0,0.00024931,2]
[336880218,1725228646736,-500.0,0.00024931,2]
[336880219,1725228646745,-637.18,0.00024931,2]
[336880220,1725228646754,-500.0,0.00024931,2]
[336880221,1725228646763,-500.0,0.00024931,2]
[336880222,1725228646772,-500.0,0.00024931,2]
[336880223,1725228646782,-500.0,0.00024931,2]
[336880224,1725228646791,-500.0,0.00024931,2]
[336880225,1725228646800,-500.0,0.00024931,2]
[336880226,1725228646809,-500.0,0.00024931,2]
[336880227,1725228646819,-500.0,0.00024931,2]
[336880228,1725228646828,-500.0,0.00024931,2]
[336880229,1725228646838,-584.11,0.00024931,2]
[336880230,1725228646847,-500.0,0.00024931,2]
[336880231,1725228646859,-500.0,0.00024931,2]
[336880232,1725228646868,-500.0,0.00024931,2]
[336880233,1725228646878,-500.0,0.00024931,2]
[336880234,1725228646887,-500.0,0.00024931,2]
[336880235,1725228646897,-500.0,0.00024931,2]
[336880236,1725228646906,-591.14,0.00024931,2]
[336880237,1725228646915,-500.0,0.00024931,2]
[336880238,1725228646925,-500.0,0.00024931,2]
[336880239,1725228646934,-500.0,0.00024931,2]
[336880240,1725228646944,-500.0,0.00024931,2]
[336880241,1725228646953,-500.0,0.00024931,2]
[336880242,1725228646962,-500.0,0.00024931,2]
[336880243,1725228646971,-500.0,0.00024931,2]
[336880244,1725228646980,-842.5,0.00024931,2]
[336880245,1725228646992,-500.0,0.00024931,2]
[336880246,1725228647002,-500.0,0.00024931,2]
[336880247,1725228647013,-500.0,0.00024931,2]
[336880248,1725228647024,-500.0,0.00024931,2]
[336880249,1725228647033,-666.3,0.00024931,2]
[336880250,1725228647043,-500.0,0.00024931,2]
[336880251,1725228647052,-500.0,0.00024931,2]
[336880252,1725228647061,-500.0,0.00024931,2]
[336880253,1725228647070,-500.0,0.00024931,2]
[336880254,1725228647082,-639.98416241,0.00024931,2]
[336880255,1725228647092,-500.0,0.00024931,2]
[336880256,1725228647101,-500.0,0.00024931,2]
[336880257,1725228647110,-1193.05,0.00024931,2]
[336880258,1725228647120,-500.0,0.00024931,2]
[336880259,1725228647130,-500.0,0.00024931,2]
[336880260,1725228647140,-500.0,0.00024931,2]
[336880261,1725228647150,-500.0,0.00024931,2]
[336880262,1725228647160,-500.0,0.00024931,2]
[336880263,1725228647170,-500.0,0.00024931,2]
[336880264,1725228647179,-933.41,0.00024931,2]
[336880265,1725228647188,-762.13,0.00024931,2]
[336880266,1725228647198,-500.0,0.00024931,2]
[336880267,1725228647208,-500.0,0.00024931,2]
[336880268,1725228647218,-830.89,0.00024931,2]
[336880269,1725228647227,-2067.07,0.00024931,2]
[336880270,1725228647238,-500.0,0.00024931,2]
[336880271,1725228647247,-717.72,0.00024931,2]
[336880272,1725228647256,-500.0,0.00024931,2]
[336880273,1725228647265,-500.0,0.00024931,2]
[336880274,1725228647275,-500.0,0.00024931,2]
[336880275,1725228647284,-500.0,0.00024931,2]
[336880276,1725228647293,-500.0,0.00024931,2]
[336880277,1725228647302,-500.0,0.00024931,2]
[336880278,1725228647313,-200.0,0.00024931,2]
[336880279,1725228647324,-500.0,0.00024931,2]
[336880280,1725228647334,-500.0,0.00024931,2]
[336880281,1725228647453,-288.97975478,0.00024931,2]
[336880282,1725228647464,-500.0,0.00024931,2]
[336880283,1725228647474,-500.0,0.00024931,2]
[336880284,1725228647484,-500.0,0.00024931,2]
[336880285,1725228647495,-1503.11,0.00024931,2]
[336880286,1725228647505,-500.0,0.00024931,2]
[336880287,1725228647514,-500.0,0.00024931,2]
[336880288,1725228647524,-500.0,0.00024931,2]
[336880289,1725228647533,-194.44568111,0.00024931,2]
[336880290,1725228647543,-500.0,0.00024931,2]
[336880291,1725228647552,-501.76369509,0.00024931,2]
[336880292,1725228647563,-500.0,0.00024931,2]
[336880293,1725228647573,-500.0,0.00024931,2]
[336880294,1725228647583,-500.0,0.00024931,2]
[336880295,1725228647594,-501.77420178,0.00024931,2]
[336880296,1725228647606,-500.0,0.00024931,2]
[336880297,1725228647617,-500.0,0.00024931,2]
[336880298,1725228647629,-500.0,0.00024931,2]
[336880299,1725228647638,-500.0,0.00024931,2]
[336880300,1725228647650,-2373.39,0.00024931,2]
[336880301,1725228647659,-500.0,0.00024931,2]
[336880302,1725228647668,-500.0,0.00024931,2]
[336880303,1725228647677,-500.0,0.00024931,2]
[336880304,1725228647687,-500.0,0.00024931,2]
[336880305,1725228647696,-904.07,0.00024931,2]
[336880306,1725228647705,-500.0,0.00024931,2]
[336880307,1725228647715,-500.0,0.00024931,2]
[336880308,1725228647725,-500.0,0.00024931,2]
[336880309,1725228647738,-500.0,0.00024931,2]
[336880310,1725228647748,-740.047224,0.00024931,7]
[336880311,1725228647758,-500.0,0.00024931,2]
[336880312,1725228647768,-500.0,0.00024931,2]
[336880313,1725228647778,-500.0,0.00024931,2]
[336880314,1725228647787,-740.047224,0.00024931,7]
[336880315,1725228647796,-1350.51,0.00024931,2]
[336880316,1725228647805,-500.0,0.00024931,2]
[336880317,1725228647814,-500.0,0.00024931,2]
[336880318,1725228647824,-500.0,0.00024931,2]
[336880319,1725228647833,-500.0,0.00024931,2]
[336880320,1725228647843,-710.76,0.00024931,2]
[336880321,1725228647852,-533.99,0.00024931,2]
[336880322,1725228647861,-507.68,0.00024931,2]
[336880323,1725228647871,-500.0,0.00024931,2]
[336880324,1725228647879,-500.0,0.00024931,2]
[336880325,1725228647890,-652.54,0.00024931,2]
[336880326,1725228647899,-500.0,0.00024931,2]
[336880327,1725228647908,-500.0,0.00024931,2]
[336880328,1725228647917,-1702.5,0.00024931,2]
[336880329,1725228647927,-941.73,0.00024931,2]
[336880330,1725228647936,-228.912194,0.00024931,7]
[336880331,1725228647948,-818.68,0.00024931,2]
[336880332,1725228647959,-500.0,0.00024931,2]
[336880333,1725228647968,-228.912194,0.00024931,7]
[336880334,1725228647977,-547.82,0.00024931,2]
[336880335,1725228647992,-500.0,0.00024931,2]
[336880336,1725228648002,-500.0,0.00024931,2]
[336880337,1725228648015,-500.0,0.00024931,2]
[336880338,1725228648025,-962.75,0.00024931,2]
[336880339,1725228648035,-593.54,0.00024931,2]
[336880340,1725228648044,-500.0,0.00024931,2]
[336880341,1725228648054,-500.0,0.00024931,2]
[336880342,1725228648064,-500.0,0.00024931,2]
[336880343,1725228648073,-1498.65,0.00024931,2]
[336880344,1725228648084,-500.0,0.00024931,2]
[336880345,1725228648094,-500.0,0.00024931,2]
[336880346,1725228648103,-500.0,0.00024931,2]
[336880347,1725228648112,-741.94,0.00024931,2]
[336880348,1725228648121,-500.0,0.00024931,2]
[336880349,1725228648131,-500.0,0.00024931,2]
[336880350,1725228648140,-500.0,0.00024931,2]
[336880351,1725228648149,-500.0,0.00024931,2]
[336880352,1725228648159,-500.0,0.00024931,2]
[336880353,1725228648168,-1569.73,0.00024931,2]
[336880354,1725228648178,-723.72,0.00024931,2]
[336880355,1725228648187,-500.0,0.00024931,2]
[336880356,1725228648197,-500.0,0.00024931,2]
[336880357,1725228648207,-2143.24,0.00024931,2]
[336880358,1725228648216,-500.0,0.00024931,2]
[336880359,1725228648226,-500.0,0.00024931,2]
[336880360,1725228648237,-837.11,0.00024931,2]
[336880361,1725228648246,-500.0,0.00024931,2]
[336880362,1725228648256,-500.0,0.00024931,2]
[336880363,1725228648265,-500.0,0.00024931,2]
[336880364,1725228648274,-500.0,0.00024931,2]
[336880365,1725228648284,-1503.12,0.00024931,2]
[336880366,1725228648293,-1857.48,0.00024931,2]
[336880367,1725228648302,-500.0,0.00024931,2]
[336880368,1725228648312,-584.59,0.00024931,2]
[336880369,1725228648321,-500.0,0.00024931,2]
[336880370,1725228648330,-500.0,0.00024931,2]
[336880371,1725228648339,-458.69737463,0.00024931,2]
[336880372,1725228648349,-500.0,0.00024931,2]
[336880373,1725228648359,-615.98,0.00024931,2]
[336880374,1725228648368,-1982.39,0.00024931,2]
[336880375,1725228648378,-500.0,0.00024931,2]
[336880376,1725228648387,-702.36,0.00024931,2]
[336880377,1725228648396,-500.0,0.00024931,2]
[336880378,1725228648406,-1088.15,0.00024931,2]
[336880379,1725228648415,-500.0,0.00024931,2]
[336880380,1725228648424,-500.0,0.00024931,2]
[336880381,1725228648434,-950.74,0.00024931,2]
[336880382,1725228648443,-500.0,0.00024931,2]
[336880383,1725228648452,-1848.07,0.00024931,2]
[336880384,1725228648462,-308.93403932,0.00024931,2]
[336880385,1725228648856,-2894.97596068,0.00024931,2]
[336880386,1725228648866,-500.0,0.00024931,2]
[336880387,1725228648876,-2992.18,0.00024931,2]
[336880388,1725228648887,-661.43,0.00024931,2]
[336880389,1725228648896,-500.0,0.00024931,2]
[336880390,1725228648906,-500.0,0.00024931,2]
[336880391,1725228648917,-500.0,0.00024931,2]
[336880392,1725228648927,-500.0,0.00024931,2]
[336880393,1725228648936,-500.0,0.00024931,2]
[336880394,1725228648946,-500.0,0.00024931,2]
[336880395,1725228648956,-500.0,0.00024931,2]
[336880396,1725228648966,-500.0,0.00024931,2]
[336880397,1725228648975,-500.0,0.00024931,2]
[336880398,1725228648985,-491.21938583,0.00024931,2]
[336880399,1725228648994,-500.0,0.00024931,2]
[336880400,1725228649005,-500.0,0.00024931,2]
[336880401,1725228649016,-500.0,0.00024931,2]
[336880402,1725228649026,-500.0,0.00024931,2]
[336880403,1725228649036,-500.0,0.00024931,2]
[336880404,1725228649047,-500.0,0.00024931,2]
[336880405,1725228649056,-500.0,0.00024931,2]
[336880406,1725228649065,-14779.04,0.00024931,2]
[336880407,1725228649074,-500.0,0.00024931,2]
[336880408,1725228649084,-696.18,0.00024931,2]
[336880409,1725228649094,-1028.82861775,0.00024931,2]
[336880410,1725228649107,-445.10138225,0.00024931,2]
[336880411,1725228649117,-1108.79,0.00024931,2]
[336880412,1725228649127,-456.10523102,0.00024931,2]
[336880413,1725228649137,-500.0,0.00024931,2]
[336880414,1725228649147,-500.0,0.00024931,2]
[336880415,1725228649157,-2610.03,0.00024931,2]
[336880416,1725228649166,-500.0,0.00024931,2]
[336880417,1725228649176,-500.0,0.00024931,2]
[336880418,1725228649185,-1874.99,0.00024931,2]
[336880419,1725228649195,-500.0,0.00024931,2]
[336880420,1725228649205,-500.0,0.00024931,2]
[336880421,1725228649214,-500.0,0.00024931,2]
[336880422,1725228649223,-509.6084453,0.00024931,2]
[336880423,1725228649234,-500.0,0.00024931,2]
[336880424,1725228649244,-500.0,0.00024931,2]
[336880425,1725228649253,-500.0,0.00024931,2]
[336880426,1725228649263,-610.36482158,0.00024931,2]
[336880427,1725228649273,-500.0,0.00024931,2]
[336880428,1725228649283,-500.0,0.00024931,2]
[336880429,1725228649292,-500.0,0.00024931,2]
[336880430,1725228649302,-500.0,0.00024931,2]
[336880431,1725228649311,-578.56,0.00024931,2]
[336880432,1725228649320,-623.51,0.00024931,2]
[336880433,1725228649448,-1701.39,0.00024931,2]
[336880434,1725228649458,-2460.92,0.00024931,2]
[336880435,1725228649468,-500.0,0.00024931,2]
[336880436,1725228649477,-500.0,0.00024931,2]
[336880437,1725228649488,-3044.79,0.00024931,2]
[336880438,1725228649498,-500.0,0.00024931,2]
[336880439,1725228649508,-500.0,0.00024931,2]
[336880440,1725228649518,-773.13,0.00024931,2]
[336880441,1725228649530,-500.0,0.00024931,2]
[336880442,1725228649540,-218.34,0.00024931,2]
[336880443,1725228649550,-500.0,0.00024931,2]
[336880444,1725228649560,-500.0,0.00024931,2]
[336880445,1725228649569,-865.51,0.00024931,2]
[336880446,1725228649578,-271.67780194,0.00024931,2]
[336880447,1725228649587,-500.0,0.00024931,2]
[336880448,1725228649596,-1350.26,0.00024931,2]
[336880449,1725228649605,-500.0,0.00024931,2]
[336880450,1725228649614,-500.0,0.00024931,2]
[336880451,1725228649623,-539.4,0.00024931,2]
[336880452,1725228649633,-1288.54,0.00024931,2]
[336880453,1725228649643,-205.2154164,0.00024931,2]
[336880454,1725228649653,-1589.94,0.00024931,2]
[336880455,1725228649662,-654.89,0.00024931,2]
[336880456,1725228649672,-1347.97,0.00024931,2]
[336880457,1725228649681,-500.0,0.00024931,2]
[336880458,1725228649690,-500.0,0.00024931,2]